Cogmind - Beta 11 @@@ ROGUE MODE // 2022.03.29 @ 13:31:07 Player: Commkeen Result: Destroyed by L-31 Rogue with Katana Performance ------------- Evolutions (1) 500 Regions Visited (2) 400 Robots Destroyed (17) 85 Value Destroyed (536) 536 Prototype IDs (3) 60 Alien Tech Used (0) 0 Bonus (11) 11 TOTAL SCORE: 1592 Bonus ------- High Alert Combat Kills 11 Cogmind --------- Core Integrity 0/400 Matter 281/300 Energy 84/100 System Corruption 0% Temperature Cool (0) Movement Walking (120) Location -9/Materials Parts ------- > --- POWER (1) -------- (None) > --- PROPULSION (3) --- Aluminum Leg Aluminum Leg Aluminum Leg > --- UTILITY (3) ------ Small Storage Unit Seismic Detector > --- WEAPON (2) ------- Small Laser > --- INVENTORY (8) ---- Ion Engine Light Ion Engine Aluminum Leg Aluminum Leg Aluminum Leg Small Storage Unit Terrain Scan Processor Peak State ------------ > --- POWER ------------ Improved Ion Engine > --- PROPULSION ------- Aluminum Leg Aluminum Leg Aluminum Leg > --- UTILITY ---------- Small Storage Unit Seismic Detector Targeting Computer > --- WEAPON ----------- Heavy Assault Rifle Heavy Assault Rifle > --- INVENTORY -------- Ion Engine Light Ion Engine Small Storage Unit [Rating: 12] Favorites ----------- Power Improved Ion Engine Engine Improved Ion Engine Propulsion Aluminum Leg Leg Aluminum Leg Utility Small Storage Unit Device Seismic Detector Storage Small Storage Unit Processor Targeting Computer Weapon Heavy Assault Rifle Energy Gun Medium Laser Ballistic Gun Heavy Assault Rifle Build | -11 -10 -9 ------- Run | Scr Mat Mat Slots Evolved 2 | . . 2 Power . | . . . Propulsion 1 | . . 1 Utility 1 | . . 1 Weapon . | . . . Parts Attached 24 | 6 2 16 Power 3 | 1 1 1 Engine 3 | 1 1 1 Core . | . . . Reactor . | . . . Propulsion 9 | 2 . 7 Treads . | . . . Leg 9 | 2 . 7 Wheel . | . . . Hover . | . . . Flight . | . . . Utility 3 | 1 1 1 Device 1 | . 1 . Storage 1 | 1 . . Processor 1 | . . 1 Hackware . | . . . Protection . | . . . Artifact . | . . . Weapon 9 | 2 . 7 Energy Gun 5 | 2 . 3 Energy Cannon . | . . . Ballistic Gun 4 | . . 4 Ballistic Cannon . | . . . Launcher . | . . . Special Weapon . | . . . Impact Weapon . | . . . Slashing Weapon . | . . . Piercing Weapon . | . . . Special Melee Weapon . | . . . Unidentified Prototypes . | . . . Parts Lost 11 | . . 11 Power 1 | . . 1 Propulsion 3 | . . 3 Utility 1 | . . 1 Weapon 6 | . . 6 Highest Loss Streak 4 | . . 4 To Critical Strikes . | . . . Average Slot Usage (%) 87 | . 86 87 Engine 11 | . 14 10 Leg 27 | . 28 27 Device 7 | . 1 11 Storage 11 | . 14 11 Processor 4 | . . 6 Energy Gun 12 | . 28 4 Ballistic Gun 11 | . . 16 Naked Turns . | . . . Heaviest Build 19 | 14 17 19 Greatest Support 30 | 20 20 30 Greatest Overweight (x) . | . . . Average Overweight (x) . | . . . Largest Inventory Capacity 8 | 8 8 8 Average Capacity 7 | 7 8 8 Most Carried 8 | 1 3 8 Average Carried 3 | . 2 4 Final Capacity 8 | 8 8 8 Final Carried 7 | 1 3 7 Class Distribution -------------------- 66% | Mutant 33% | Scavenger-Mutant Dominant Class ---------------- Mutant | -10/Materials Scavenger-Mutant | -9/Materials Resources | -11 -10 -9 ----------- Run | Scr Mat Mat Matter Collected 569 | 194 76 299 Remotely . | . . . Salvage Created 661 | . 99 562 Parts 40 | . 6 34 Haulers Intercepted . | . . . Recyclers Shooed 1 | . 1 . Parts Field Recycled . | . . . Retrieved Matter . | . . . Parts Self-Destructed . | . . . Prevented . | . . . Kills | -11 -10 -9 ------- Run | Scr Mat Mat Combat Hostiles Destroyed 16 | . 2 14 Guns 14 | . 2 12 AOE 2 | . . 2 Classes Destroyed 5 | . 1 4 Builder 1 | . . 1 Swarmer 3 | . . 3 Grunt 9 | . 2 7 Duelist 1 | . . 1 Sentry 3 | . . 3 Best Kill Streak 6 | . 1 6 Combat Bots Only 6 | . 1 6 Max Kills in Single Turn 3 | . 1 3 Gunslinging . | . . . Exploded 2 | . . 2 Melee . | . . . Uniques/NPCs Destroyed . | . . . Combat | -11 -10 -9 -------- Run | Scr Mat Mat Damage Taken 1622 | . 67 1555 Core 456 | . 23 433 Absorbed by Shields . | . . . Core Remaining (%) 95 | 100 90 . Volleys Fired 61 | . 8 53 Largest 2 | . 2 2 Hottest 90 | . 90 90 Shots Fired 112 | . 16 96 Gun 112 | . 16 96 Cannon . | . . . Launcher . | . . . Special . | . . . Kinetic 69 | . . 69 Thermal 20 | . 8 12 Explosive . | . . . Electromagnetic 23 | . 8 15 Robot Hit Streak 11 | . 5 11 Robot Miss Streak 3 | . 2 3 Penetration Max . | . . . Secondary Targets 5 | . . 5 Max Gunslinging Chain 1 | . . 1 Shots Hit Robots 83 | . 11 72 Core Hits 31 | . 4 27 Critical Kills 1 | . . 1 Critical Parts Destroyed . | . . . Critical Strikes 2 | . . 2 Destroy 1 | . . 1 Corrupt 1 | . . 1 Melee Attacks . | . . . Impact . | . . . Slashing . | . . . Piercing . | . . . Sneak Attacks . | . . . Combat Hostiles . | . . . Follow-up Attacks . | . . . Damage Inflicted 1291 | . 159 1132 Guns 1231 | . 159 1072 Cannons . | . . . Explosions 60 | . . 60 Melee . | . . . Ramming . | . . . Kinetic 771 | . . 771 Thermal 249 | . 65 184 Explosive . | . . . Electromagnetic 271 | . 94 177 Impact . | . . . Slashing . | . . . Piercing . | . . . Highest Corruption . | . . . Average Corruption . | . . . Corruption Purged . | . . . Corruption Blocked . | . . . Overload Shots . | . . . Overflow Damage . | . . . Projectiles . | . . . Explosions . | . . . Melee . | . . . Knockbacks . | . . . Impact . | . . . Kinetic . | . . . Secondary . | . . . Self-Inflicted Damage 28 | . . 28 Shots 1 | . . 1 Rammed . | . . . Targets Rammed 1 | . . 1 Kicked 1 | . . 1 Crushed . | . . . Highest Temperature 288 | . 150 288 Average Temperature 77 | . 78 76 Received Heat Transfer 648 | . 36 612 Siege Activations . | . . . Robots Corrupted . | . . . Combat Hostiles . | . . . Parts Fried . | . . . Impact Corruptions . | . . . Robots Melted . | . . . Combat Hostiles . | . . . Parts Melted 2 | . . 2 Heat Transferred 569 | . 185 384 Parts Sabotaged . | . . . Parts Stolen . | . . . Parts Stripped . | . . . Power Chain Reactions 1 | . . 1 Missiles Intercepted . | . . . Alert | -11 -10 -9 ------- Run | Scr Mat Mat Peak Influence 415 | . 121 415 Initial 50 | . . 50 Average 129 | . 63 182 Maximum Alert Level 2 | . . 2 Low Security (%) 81 | 100 100 70 Level 1 17 | . . 29 Level 2 . | . . . Level 3 . | . . . Level 4 . | . . . Level 5 . | . . . High Security . | . . . Max Security . | . . . Squads Dispatched 2 | . . 2 Investigation . | . . . Extermination . | . . . Reinforcement 2 | . . 2 Assault . | . . . Garrison . | . . . Intercept . | . . . Searches Triggered . | . . . Construction Impeded . | . . . Haulers Reinforced . | . . . Active Scanning Responses . | . . . Cargo Convoy Interrupts . | . . . Stealth | -11 -10 -9 --------- Run | Scr Mat Mat Distress Signals 2 | . 1 1 Communications Jammed . | . . . Distress Signals . | . . . Times Spotted 32 | . 6 26 Peak Tracking Total 7 | . 4 7 Tactical Retreats 3 | . 1 2 Traps | -11 -10 -9 ------- Run | Scr Mat Mat Traps Triggered . | . . . Indirectly . | . . . Trap Hack Attempts . | . . . Triggered . | . . . Disarmed . | . . . Reprogrammed . | . . . Reused . | . . . Traps Extracted . | . . . Installed . | . . . Triggered . | . . . Machines | -11 -10 -9 ---------- Run | Scr Mat Mat Machines Disabled . | . . . Max in Single Turn . | . . . Machines Sabotaged . | . . . Garrisons Compromised . | . . . Overloaded Fab Kills . | . . . Hacking | -11 -10 -9 --------- Run | Scr Mat Mat Machines Accessed 4 | . 3 1 Terminals 4 | . 3 1 Fabricators . | . . . Repair Stations . | . . . Recycling Units . | . . . Scanalyzers . | . . . Garrison Access . | . . . Total Hacks 7 | . 5 2 Successful 3 | . 2 1 Failed 4 | . 3 1 Catastrophic . | . . . Database Lockouts . | . . . Manual 2 | . 2 . Terminals 7 | . 5 2 Fabricators . | . . . Repair Stations . | . . . Recycling Units . | . . . Scanalyzers . | . . . Garrison Access . | . . . Terminal Hacks 3 | . 2 1 Prototype ID Bank 1 | . 1 . Dispatch Records 1 | . 1 . Zone Layout 1 | . . 1 Fabricator Hacks . | . . . Repair Station Hacks . | . . . Recycling Unit Hacks . | . . . Scanalyzer . | . . . Garrison Access Hacks . | . . . Unauthorized Hacks . | . . . Terminals . | . . . Fabricators . | . . . Repair Stations . | . . . Recycling Units . | . . . Scanalyzers . | . . . Garrison Access . | . . . Data Cores Recovered . | . . . Used . | . . . Hacking Detections 4 | . 3 1 Full Trace Events . | . . . Feedback Events . | . . . Feedback Blocked . | . . . Robot Schematics Acquired . | . . . Robots Built . | . . . Authchips . | . . . Time . | . . . Total Robot Build Rating . | . . . Part Schematics Acquired . | . . . Parts Built . | . . . Authchips . | . . . Time . | . . . Total Part Build Rating . | . . . Parts Repaired . | . . . Time . | . . . Parts Recycled . | . . . Recycled Matter . | . . . Retrieved Matter . | . . . Retrieved Components . | . . . Parts Scanalyzed . | . . . Part Schematics Acquired . | . . . Parts Damaged . | . . . Bothacking | -11 -10 -9 ------------ Run | Scr Mat Mat Used RIF Installer . | . . . Robots Hacked . | . . . Non-combat . | . . . Combat . | . . . Robot Hacks Applied . | . . . Relay Couplers Released . | . . . Fabnet Peak Effective % . | . . . Robots Rewired . | . . . Allies Hacked . | . . . Hacks Repelled . | . . . Allies | -11 -10 -9 -------- Run | Scr Mat Mat Total Allies . | . . . Largest Group . | . . . Highest-Rated Group . | . . . Highest-Rated Ally . | . . . Total Orders . | . . . Ally Attacks . | . . . Total Damage . | . . . Kills . | . . . Allies Corrupted . | . . . Allies Melted . | . . . Intel | -11 -10 -9 ------- Run | Scr Mat Mat Robot Analysis Total . | . . . Derelict Logs Recovered . | . . . Drone Launches . | . . . Drone Recoveries . | . . . Exploration | -11 -10 -9 ------------- Run | Scr Mat Mat Turns Passed 876 | 84 262 530 Spaces Moved 519 | 65 190 264 Core 4 | 4 . . Treads . | . . . Legs 515 | 61 190 264 Wheels . | . . . Hover . | . . . Flight . | . . . Fastest Speed 50 | 50 120 120 Average Speed 119 | 115 120 120 Slowest Speed 120 | 120 120 120 Overloaded Moves . | . . . Propulsion Burnouts . | . . . Robots Hopped . | . . . Cave-ins Triggered . | . . . Exploration Rate (%) 26 | 3 43 34 Regions Visited 2 Branch Regions . Pre-discovered Areas . | . . . Known Exits Taken . | . . . Unknown Exits Taken 2 | 1 1 . Scrap Searched . | . . . Spaces Dug . | . . . Terrain Destroyed 2 | . . 2 Melee . | . . . Projectile . | . . . AOE 2 | . . 2 Terrain Rammed . | . . . Walls Destroyed . | . . . Machines Disabled . | . . . Actions | -11 -10 -9 --------- Run | Scr Mat Mat Total 652 | 71 207 374 Wait 46 | . 7 39 Move 517 | 64 189 264 Hop . | . . . Pick Up 3 | 1 1 1 Fast Attach 16 | 6 1 9 Attach 2 | . . 2 Detach . | . . . Swap 6 | . 1 5 Drop . | . . . Fire 61 | . 8 53 Melee . | . . . Ram . | . . . Kick 1 | . . 1 Crush . | . . . Escape Stasis . | . . . Rewire . | . . . Trap . | . . . Miscellaneous . | . . . Route ------- -11/Scrapyard -10/Materials (discovered 2 exits: *Mat / [*Min]) -9/Materials (discovered 1 exit: [*Min]) History --------- Turn | Location | Event 3 | -11/Scrapyard | Discovered new exit (range 15) 85 | -11/Scrapyard | Entered Materials 134 | -10/Materials | Discovered new exit (range 16) 301 | -10/Materials | Build established: Mutant 324 | -10/Materials | Discovered new exit (range 16) 347 | -10/Materials | Entered another Materials area 347 | -9/Materials | Evolved 2 slots: Propulsion x1, Utility x1 600 | -9/Materials | Discovered new exit (range 8) 703 | -9/Materials | Core integrity fell below 50% 784 | -9/Materials | Lost 4 parts (1p1n2w) 811 | -9/Materials | Core integrity fell below 20% 877 | -9/Materials | Destroyed by L-31 Rogue with Katana Last Messages --------------- 00807_ T-07 Excavator is excavating. 00808_ U-05 Engineer lays Concrete. 00810_ G-34 Mercenary destroyed. 00810_ Switching to secondary target: S-10 Pest. 00810_ Chain reaction triggered in Lgt. Ion Engine. 00810_ S-10 Pest destroyed. 00810_ G-34 Mercenary destroyed. 00811_ Acquired 17 matter. 00814_ U-05 Engineer lays Concrete. 00814_ Acquired Aluminum Leg. 00815_ U-05 Engineer lays Concrete. 00821_ U-05 Engineer builds a Wall. 00821_ Kicked U-05 Engineer out of the way. 00822_ U-05 Engineer builds a Door. 00823_ U-05 Engineer builds a Wall. 00824_ U-05 Engineer lays Concrete. 00855_ K-01 Serf collects debris. 00867_ Hvy. Assault Rifle destroyed. 00874_ Lgt. Ion Engine severed. 00874_ EM Shotgun destroyed. Map ----- +----------------------------------------------------+ | % ## ##????????????????? | | ## "" ##????????????????? | | % ## """ ##????????????????? | | ############ ## S" ##????????????????? | | ???????????# ## ##????????????????? | | ????######## ########?????????????????? | | ????# [[ # # ???????????????????? | | ????# [[ # # ???????? ????????????? | | ????# [[ + + ?????????? ????????????? | | ????# # #??????????? ????????????? | | ????# # #??????????? ????????????? | | ????# ?# #??????????? #???????????? | | ????######?# #??????????? #???????????? | | ???######### #########??# #???????????? | | ???# "T" #[% # #??# #???????????? | | ???# %+* #??# #???????????? | | ???# # # ##??# #?##########? | | ???######### ########???# #?# #? | | ????######## ##?????????# #?# """ #? | | ########### ### """ #? | | T k # """ #? | | "" + #? | | ########## # """ #? | | ??????????# ###+######g#### """ #? | | ??????????## ## ?# l ## """ #? | | ???????????# ## """" # @"""## #? | | ???????????# ## """" # """###########? | | ???????????# ## """" # """#??????????? | | ???????????# ?# # """#??????????? | | ???????????# ?# # """#??????????? | | ??????????? ?######## #??????????? | | ???????????# ????????# #??????????? | | ???????????# ????????# #??????????? | | ???????????/ ????????# #??????????? | | ?????????????#?????????# #??????????? | | ???????????????????????# #??????????? | | ???????????????????????#######??????????? | | ????????????????????????????????????????? | | ????????????????????????????????????????? | | ????????????????????????????????????????? | | ????????????????????????????????????????? | | ????????????????????????????????????????? | | ????????????????????????????????????????? | | ????????????????????????????????????????? | | ????????????????????????????????????????? | | ????????????????????????????????????????? | | ????????????????????????????????????????? | | ????????????????????????????????????????? | | ????????????????????????????????????????? | | ????????????????????????????????????????? | +----------------------------------------------------+ Best States ------------- Heat Dissipation 28 Energy Generation 12 Energy Capacity 265 Matter Stores 300 Matter Capacity 300 Sight Range 16 Terrain Scan Density 10 Evasion (%) 55 Targeting Accuracy 5 Item Schematics ----------------- None Robot Schematics ------------------ None Fabricated ------------ Nothing Alien Tech Used ----------------- None Achievements -------------- None Challenges ------------ None Game ------ Seed BladeDispersionImmobilizer Manual? 0 Play Time 00:12:55 Cumulative 27.6 hours Start 2022.03.29 @ 13:22:32 End 2022.03.29 @ 13:31:07 Sessions 1 Manual Loads 0 Difficulty Rogue Special Mode None Game No. 58 Rogue 58 Adventurer 0 Explorer 0 Win Type - Total 0 Types 0/0/0/0/0/0/0/0/0 Lore% 20 Gallery% 33 Achievement% 24 Wizard Run 0 Options --------- ASCII 0 Keyboard 1 Movement Numpad Keybinds 0 Fullscreen 1 Font 20/SmallcapsGlow Map View 66x50 Tactical HUD 1 Map Filters NONE Filters NONE Steam 1 RUN: 387ae32f-5449-4f1a-815e-f7eac5abed58